Cogmind - Beta 16.1 @@@ ROGUE MODE // 2026.02.13 @ 14:06:08 Player: Megaknight51 Result: Destroyed by S-10 Pest with Light Assault Rifle Performance ------------- Evolutions (0) 0 Regions Visited (1) 200 Robots Destroyed (17) 85 Value Destroyed (223) 223 Prototype IDs (0) 0 Alien Tech Used (0) 0 Bonus (0) 0 TOTAL SCORE: 508 Bonus ------- None Cogmind --------- Core Integrity 0/250 Matter 255/300 Energy 100/100 System Corruption 3% Temperature Cool (0) Movement Core (350) Ox6 Location -10/Materials Parts ------- > --- POWER (1) -------- (None) > --- PROPULSION (2) --- (None) > --- UTILITY (2) ------ Large Storage Unit > --- WEAPON (2) ------- (None) > --- INVENTORY (15) --- Light Ion Engine Flight Unit Flight Unit Structural Scanner Visual Processing Unit Improved Terrain Scanner Peak State ------------ > --- POWER ------------ Light Ion Engine > --- PROPULSION ------- Aluminum Leg Aluminum Leg > --- UTILITY ---------- Improved Terrain Scanner Seismic Detector > --- WEAPON ----------- Assault Rifle Assault Rifle > --- INVENTORY -------- Light Ion Engine [Rating: 9] Favorites ----------- Power Light Ion Engine Engine Light Ion Engine Propulsion Flight Unit Leg Aluminum Leg Flight Unit Flight Unit Utility Seismic Detector Device Seismic Detector Storage Large Storage Unit Weapon Assault Rifle Ballistic Gun Assault Rifle Special Weapon Mining Laser Build | -11 -10 ------- Run | Yrd Mat Slots Evolved . | . . Power . | . . Propulsion . | . . Utility . | . . Weapon . | . . Parts Attached 17 | 7 10 Power 2 | 1 1 Engine 2 | 1 1 Core . | . . Reactor . | . . Propulsion 7 | 2 5 Treads . | . . Leg 2 | 2 . Wheel . | . . Hover . | . . Flight 5 | . 5 Utility 4 | 2 2 Device 3 | 2 1 Storage 1 | . 1 Processor . | . . Hackware . | . . Protection . | . . Artifact . | . . Weapon 4 | 2 2 Energy Gun . | . . Energy Cannon . | . . Ballistic Gun 3 | 2 1 Ballistic Cannon . | . . Launcher . | . . Special Weapon 1 | . 1 Impact Weapon . | . . Slashing Weapon . | . . Piercing Weapon . | . . Special Melee Weapon . | . . Unidentified Prototypes . | . . Parts Lost 7 | . 7 Power 1 | . 1 Propulsion 3 | . 3 Utility 1 | . 1 Weapon 2 | . 2 Highest Loss Streak 4 | . 4 To Critical Strikes . | . . Average Backups 3 | . 4 Power . | . 1 Propulsion 1 | . 1 Utility 1 | . 1 Weapon . | . . Tool/Special . | . . Unused Backups 4 | . 4 Power 1 | . 1 Propulsion 1 | . 1 Utility 2 | . 2 Weapon . | . . Tool/Special . | . . Average Slot Usage (%) 88 | . 88 Engine 13 | . 13 Leg 3 | . 3 Flight 21 | . 21 Device 22 | . 22 Storage 4 | . 4 Ballistic Gun 19 | . 19 Special Weapon 2 | . 2 Peak Build Rating 9 | 9 9 Average Rating 7 | 4 7 On Entrance 4 | . 9 Avg Prop Armor Cover (%) 8 | . 8 Naked Turns . | . . Heaviest Build 26 | 9 26 Greatest Support 20 | 20 20 Greatest Overweight (x) 6 | . 6 Average Overweight (x) . | . . Largest Inventory Capacity 15 | 5 15 Average Capacity 8 | 5 8 Most Carried 6 | 1 6 Average Carried 3 | . 4 Final Capacity 15 | 5 15 Final Carried 6 | 1 6 Class Distribution -------------------- 50% | Mutant 50% | Scavenger-Mutant Dominant Class ---------------- Scavenger-Mutant | -10/Materials Resources | -11 -10 ----------- Run | Yrd Mat Matter Collected 543 | 244 299 Remotely . | . . Salvage Created 334 | 28 306 Parts 34 | 5 29 Haulers Intercepted . | . . Recyclers Shooed 4 | 1 3 Parts Field Recycled . | . . Retrieved Matter . | . . Parts Self-Destructed . | . . Prevented . | . . Parts Restored . | . . Kills | -11 -10 ------- Run | Yrd Mat Combat Hostiles Destroyed 8 | . 8 Guns 8 | . 8 Classes Destroyed 7 | 1 6 Builder 2 | . 2 Tunneler 3 | 2 1 Recycler 1 | . 1 Operator 1 | . 1 Watcher 2 | . 2 Swarmer 6 | . 6 Grunt 2 | . 2 Best Kill Streak 3 | 2 3 Combat Bots Only 3 | . 3 Max Kills in Single Turn 1 | 1 1 Gunslinging . | . . Exploded . | . . Melee . | . . Uniques/NPCs Destroyed . | . . Combat | -11 -10 -------- Run | Yrd Mat Hostile Shots Fired 82 | . 82 Missed 14 | . 14 Hits 68 | . 68 Projectile 68 | . 68 Critical Strikes 2 | . 2 Damage Taken 671 | . 671 Core 257 | . 257 Absorbed by Shields . | . . Core Remaining (%) 100 | 100 . Volleys Fired 67 | 5 62 Largest 2 | 2 2 Hottest 100 | 40 100 Shots Fired 97 | 10 87 Gun 95 | 10 85 Cannon . | . . Launcher . | . . Special 2 | . 2 Kinetic 95 | 10 85 Thermal 2 | . 2 Explosive . | . . Electromagnetic . | . . Robot Hit Streak 11 | 5 11 Robot Miss Streak 4 | 2 4 Penetration Max . | . . Secondary Targets 1 | . 1 Max Gunslinging Chain 1 | . 1 Shots Hit Robots 62 | 6 56 Core Hits 24 | 3 21 Critical Kills . | . . Critical Parts Destroyed . | . . Critical Strikes . | . . Melee Attacks . | . . Impact . | . . Slashing . | . . Piercing . | . . Sneak Attacks . | . . Combat Hostiles . | . . Follow-up Attacks . | . . Damage Inflicted 768 | 87 681 Guns 744 | 87 657 Cannons . | . . Explosions . | . . Melee . | . . Ramming . | . . Kinetic 744 | 87 657 Thermal 24 | . 24 Explosive . | . . Electromagnetic . | . . Impact . | . . Slashing . | . . Piercing . | . . Highest Corruption 3 | . 3 Average Corruption 1 | . 1 Corruption Purged . | . . Corruption Blocked . | . . Effects 8 | . 8 Message Errors 3 | . 3 Matter Fused 1 | . 1 Data Loss (minor) 1 | . 1 Data Loss (major) 2 | . 2 Misfires 1 | . 1 Overload Shots . | . . Overflow Damage . | . . Projectiles . | . . Explosions . | . . Melee . | . . Knockbacks . | . . Impact . | . . Kinetic . | . . Secondary . | . . Self-Inflicted Damage . | . . Shots . | . . Rammed 1 | . 1 Targets Rammed 1 | . 1 Kicked . | . . Crushed . | . . Highest Temperature 42 | . 42 Average Temperature 9 | . 9 Received Heat Transfer 78 | . 78 Siege Activations . | . . Martial Activations . | . . Shielding Activations . | . . Robots Disrupted . | . . Combat Hostiles . | . . Robots Corrupted . | . . Combat Hostiles . | . . Parts Fried . | . . Impact Corruptions . | . . Robots Melted . | . . Combat Hostiles . | . . Parts Melted . | . . Heat Transferred 50 | . 50 Parts Sabotaged . | . . Parts Stolen . | . . Parts Stripped . | . . Power Chain Reactions . | . . Alert | -11 -10 ------- Run | Yrd Mat Maximum Alert Level . | . . Low Security (%) 100 | 100 100 Level 1 . | . . Level 2 . | . . Level 3 . | . . Level 4 . | . . Level 5 . | . . High Security . | . . Max Security . | . . Peak Influence 56 | 5 56 Initial . | . . Average 15 | 1 17 Influence Increases 283 | 10 273 Destroy 0b10 Robot/C 160 | . 160 Destroy 0b10 Robot/NC 45 | 10 35 Destroy Leader 34 | . 34 Successful Hack 13 | . 13 Disable Machine 15 | . 15 Destroy Structure 1 | . 1 Partial Spotted 15 | . 15 Influence Decreases 283 | 10 273 Time Decay 223 | 10 213 Lost Part 60 | . 60 Squads Dispatched 2 | . 2 Investigation . | . . Extermination . | . . Reinforcement 2 | . 2 Assault . | . . Garrison . | . . Intercept . | . . Searches Triggered . | . . Construction Impeded . | . . Haulers Reinforced . | . . Active Scanning Responses . | . . Cargo Convoy Interrupts . | . . Stealth | -11 -10 --------- Run | Yrd Mat Distress Signals . | . . Communications Jammed . | . . Distress Signals . | . . Times Spotted 21 | . 21 Peak Tracking Total 4 | . 4 Tactical Retreats . | . . Traps | -11 -10 ------- Run | Yrd Mat Traps Triggered 2 | . 2 Indirectly . | . . Trap Hack Attempts . | . . Triggered . | . . Disarmed . | . . Reprogrammed . | . . Reused . | . . Traps Extracted . | . . Installed . | . . Triggered . | . . Machines | -11 -10 ---------- Run | Yrd Mat Machines Disabled 1 | . 1 Max in Single Turn 1 | . 1 Machines Repaired . | . . Machines Dismantled . | . . Machines Sabotaged . | . . Overloaded Fab Kills . | . . Hacking | -11 -10 --------- Run | Yrd Mat Machines Accessed 2 | . 2 Terminals 2 | . 2 Fabricators . | . . Repair Stations . | . . Recycling Units . | . . Scanalyzers . | . . Garrison Access . | . . Total Hacks 7 | . 7 Successful 2 | . 2 Failed 4 | . 4 Catastrophic . | . . Database Lockouts 1 | . 1 Manual 5 | . 5 Terminals 7 | . 7 Fabricators . | . . Repair Stations . | . . Recycling Units . | . . Scanalyzers . | . . Garrison Access . | . . Terminal Hacks 2 | . 2 Robot Analysis 1 | . 1 Registered Components 1 | . 1 Fabricator Hacks . | . . Repair Station Hacks . | . . Recycling Unit Hacks . | . . Scanalyzer . | . . Garrison Access Hacks . | . . Unauthorized Hacks . | . . Terminals . | . . Fabricators . | . . Repair Stations . | . . Recycling Units . | . . Scanalyzers . | . . Garrison Access . | . . Data Cores Recovered . | . . Used . | . . Hacking Detections 2 | . 2 Full Trace Events . | . . Feedback Events . | . . Feedback Blocked . | . . Robot Schematics Acquired . | . . Robots Built . | . . Authchips . | . . Time . | . . Total Robot Build Rating . | . . Part Schematics Acquired . | . . Parts Built . | . . Authchips . | . . Time . | . . Total Part Build Rating . | . . Part Studies Acquired . | . . Parts Repaired . | . . Time . | . . Parts Recycled . | . . Recycled Matter . | . . Retrieved Matter . | . . Retrieved Components . | . . Parts Scanalyzed . | . . Part Schematics Acquired . | . . Parts Damaged . | . . Bothacking | -11 -10 ------------ Run | Yrd Mat Used RIF Installer . | . . Robots Hacked . | . . Non-combat . | . . Combat . | . . Robot Hacks Applied . | . . Relay Couplers Released . | . . Fabnet Peak Effective % . | . . Robots Rewired . | . . Allies Hacked . | . . Hacks Repelled . | . . Allies | -11 -10 -------- Run | Yrd Mat Total Allies . | . . Largest Group . | . . Highest-Rated Group . | . . Highest-Rated Ally . | . . Total Orders . | . . Ally Attacks . | . . Total Damage . | . . Kills . | . . Allies Corrupted . | . . Allies Melted . | . . Intel | -11 -10 ------- Run | Yrd Mat Active Infowar (turns) 693 | 23 670 Terrain 463 | 23 440 Seismic 682 | 12 670 Robot Analysis Total 1 | . 1 Derelict Logs Recovered . | . . Drone Launches . | . . Drone Recoveries . | . . Exploration | -11 -10 ------------- Run | Yrd Mat Turns Passed 771 | 95 676 Spaces Moved 626 | 66 560 Core 15 | 15 . Treads . | . . Legs 80 | 51 29 Wheels . | . . Hover . | . . Flight 531 | . 531 Fastest Speed 37 | 50 37 Average Speed 89 | 104 87 Slowest Speed 520 | 120 520 Overloaded Moves . | . . Propulsion Burnouts . | . . Robots Hopped 3 | . 3 Potential Cave-ins . | . . Cave-ins Triggered . | . . Exploration Rate (%) 35 | 3 68 Regions Visited 1 Branch Regions . Pre-discovered Areas . | . . Known Exits Taken . | . . Unknown Exits Taken 1 | 1 . Scrap Searched . | . . Spaces Dug . | . . Terrain Destroyed . | . . Melee . | . . Projectile . | . . AOE . | . . Terrain Rammed . | . . Walls Destroyed . | . . Machines Disabled . | . . Actions | -11 -10 --------- Run | Yrd Mat Total 729 | 78 651 Wait 8 | . 8 Move 619 | 65 554 Hop 3 | . 3 Pick Up 6 | 1 5 Fast Attach 9 | 7 2 Attach . | . . Detach 1 | . 1 Swap 9 | . 9 Drop 6 | . 6 Fire 67 | 5 62 Melee . | . . Ram 1 | . 1 Kick . | . . Crush . | . . Escape Stasis . | . . Rewire . | . . Trap . | . . Miscellaneous . | . . Route ------- -11/Scrapyard -10/Materials (discovered 3 exits: [*Mat x2] / [*Min]) History --------- Turn | Location | Event 7 | -11/Scrapyard | Discovered new exit (range 15) 96 | -11/Scrapyard | Entered Materials 97 | -10/Materials | Met a group of wandering Federalists 356 | -10/Materials | Central database locked down 369 | -10/Materials | Discovered new exit (range 10) 410 | -10/Materials | Discovered new exit (range 3) 533 | -10/Materials | Discovered new exit (range 9) 601 | -10/Materials | Core integrity fell below 50% 766 | -10/Materials | Core integrity fell below 20% 772 | -10/Materials | Destroyed by S-10 Pest with Light Assault Rifle Last Messages --------------- 00659_ K-01 Serf collects debris. 00662_ U-05 Engineer lays Concrete. 00662_ K-01 Serf collects debris. 00663_ U-05 Engineer builds a Wall. 00667_ U-05 Engineer lays Concrete. 00680_ R-06 Scavenger collects Visual Processing Unit. 00684_ Acquired 52 matter. 00690_ XABDZ>6VK9ZXF370EUDVREJHKV> N4XVL9QH 00698_ R-06 Scavenger inserts Hover Unit into recycling unit. 00699_ Recycling unit begins recycling process. 00701_ R-06 Scavenger inserts Lgt. Ion Engine into recycling unit. 00704_ R-06 Scavenger inserts Visual Processing Unit into recycling unit. 00705_ Recycling unit begins recycling process. 00710_ System corrupted: Substantial component data lost. 00756_ S-10 Pest destroyed. 00759_ Lgt. Assault Rifle destroyed. 00762_ Lgt. Ion Engine destroyed. 00764_ Slammed into S-10 Pest. 00766_ Seismic Detector destroyed. 00770_ Flight Unit destroyed. Map ----- +----------------------------------------------------+ | ???????######## #???????????????????? | | ??????????????# # ??????????????????? | | ???????######## #???????????????????? | | ???????# ! # #?? ????????????????? | | ???????# """# #??????????????? ?? | | ???????# """# #???? ?????????# ? | | ???????# """# #?########+#???# #? | | ???????# """# ## #?### ## | | ???#???# # ## ##" # | | ???????####+######+#### ##"" # | | ???????# # = ##!! # | | ???#???# < + ?#"" < # | | ????#??# # ???#!! # | | ???????####+########### ????#"" # | | ???????# # #?# ????????? # | | ???????# """ # #?#+####??#?????# ## | | ??#???##/ """ # ### #T########### | | ???????# """ # ## | | ???????# # + | | ??###########+## # * | | # # ##+### ####/######## ## | | # """ """ + ^ "" ### ## | | # """ """ # ! " #?# ### | | # """ """ #! ###%### " #?# #?? | | # ## ####/### "## #?? | | ?########### #s @s #! "## #?? | | ???????#???# + "Y" # "## #?? | | ???????? ??# # """ # "## #?? | | ??????? ???# # # " "## #?? | | ????????? ?# ####### " ### #?? | | ???????????# ######## #"""""""""### #?? | | ????? ?????+ !+ # ###" #""##### #?? | | ?????? ? ?# # # ### | | ?????#?????# # """" + ^ # | | ????#????? # """" # # | | ????????? # """" ######+########## | | ?=??????# # #??# !#?????# | | ????????# ####+###??#| #?????# | | ????????# #??# #?#??# """ #?????# < # | | ????????# ?? #????#/ """ #?????# # | | ???????? ?? #????# """ #?????##### | | ???????#####+##?####????# #?????????? | | ????????????????????????########?????????? | | ?????????????????????????????????????????? | | ???????????????????????????????#?????????? | | ?????????????????????????????????#???????? | | ?????????????????????????????????????????? | | ?????????????????????????????????????????? | | ?????????????????????????????????????????? | | | +----------------------------------------------------+ Best States ------------- Heat Dissipation 25 Energy Generation 10 Energy Capacity 125 Matter Stores 250 Matter Capacity 300 Sight Range 16 Terrain Scan Range 16 Terrain Scan Density 10 Evasion (%) 62 Item Schematics ----------------- None Robot Schematics ------------------ None Fabricated ------------ Nothing Repaired ---------- Nothing Studied --------- None Alien Tech Used ----------------- None Achievements -------------- None Challenges ------------ None Game ------ Seed FocalLaunchExoskeleton Manual? 0 Play Time 00:07:03 Cumulative 65.2 hours Start 2026.02.13 @ 14:00:37 End 2026.02.13 @ 14:06:08 Sessions 1 Manual Loads 0 Difficulty Rogue Special Mode None Game No. 138 Rogue 138 Adventurer 0 Explorer 0 Win Type - Total 0 Types 0/0/0/0/0/0/0/0/0/0 Lore% 45 Gallery% 34 Achievement% 32 Wizard Run 0 Options --------- Layout 0 ASCII 0 Keyboard 1 Movement Arrows Keybinds 0 Fullscreen 1 Font 18/Smallcaps Map View 38x25 Zoom Use 97% Tactical HUD 1 Map Filters NONE Filters NONE Steam 1 RUN: a7d730a0-813a-4aea-8435-6b0c47236e50